fUSD/lending_fUSD_20240630
["ID","MTS","AMOUNT","RATE_DAILY","PERIOD"]
[330690740,1719711084387,-2026.5,0.00014465,3]
[330690741,1719711084397,-500.0,0.00014465,3]
[330690742,1719711084406,-1434.62,0.00014465,3]
[330690743,1719711084416,-914.82,0.00014465,3]
[330690744,1719711084425,-2283.96,0.00014465,3]
[330690745,1719711084434,-806.6,0.00014465,3]
[330690746,1719711084443,-853.8,0.00014465,3]
[330690747,1719711084452,-500.0,0.00014465,3]
[330690748,1719711084461,-990.19,0.00014465,3]
[330690749,1719711084471,-527.87,0.00014465,3]
[330690750,1719711084480,-500.0,0.00014465,3]
[330690751,1719711084490,-555.08,0.00014465,3]
[330690752,1719711084499,-500.0,0.00014465,3]
[330690753,1719711084509,-2932.06,0.00014465,3]
[330690754,1719711084518,-1092.71,0.00014465,3]
[330690755,1719711084528,-500.0,0.00014465,3]
[330690756,1719711084537,-1430.53,0.00014465,3]
[330690757,1719711084547,-866.85,0.00014465,3]
[330690758,1719711084556,-500.0,0.00014465,3]
[330690759,1719711084566,-500.0,0.00014465,3]
[330690760,1719711084576,-668.37,0.00014465,3]
[330690761,1719711084586,-425.50035454,0.00014465,3]
[330690762,1719711084596,-726.78,0.00014465,3]
[330690763,1719711084609,-804.46,0.00014465,3]
[330690764,1719711084619,-341.67299627,0.00014465,3]
[330690765,1719711084628,-962.38,0.00014465,3]
[330690766,1719711084638,-623.27,0.00014465,3]
[330690767,1719711084647,-500.0,0.00014465,3]
[330690768,1719711084656,-1151.96,0.00014465,3]
[330690769,1719711084666,-1231.81,0.00014465,3]
[330690770,1719711084676,-572.24,0.00014465,3]
[330690771,1719711084687,-500.0,0.00014465,3]
[330690772,1719711084697,-500.0,0.00014465,3]
[330690773,1719711084706,-500.0,0.00014465,3]
[330690774,1719711084716,-789.18,0.00014465,3]
[330690775,1719711084728,-500.0,0.00014465,3]
[330690776,1719711084738,-500.0,0.00014465,3]
[330690777,1719711084747,-2872.85,0.00014465,3]
[330690778,1719711084756,-1003.38,0.00014465,3]
[330690779,1719711084765,-17393.60470178,0.0001453,2]
[330690780,1719711084775,-155.32815344,0.00014532,2]
[330690781,1719711084784,-155.22564397,0.00014532,2]
[330690782,1719711084794,-176.25205244,0.00014532,2]
[330690783,1719711084803,-2217.07626706,0.00014532,2]
[330690784,1719711084813,-2398.3534336,0.00014565,2]
[330690785,1719711084822,-5277.4429735,0.00014565,2]
[330690786,1719711084831,-1246.57,0.00014575,3]
[330690787,1719711084840,-2620.27,0.00014575,3]
[330690788,1719711084849,-771.15,0.00014575,3]
[330690789,1719711084858,-2420.64,0.00014575,3]
[330690790,1719711084868,-1036.09,0.00014575,3]
[330690791,1719711084877,-2486.42,0.00014575,3]
[330690792,1719711084886,-1825.95,0.00014575,3]
[330690793,1719711084896,-500.0,0.00014575,3]
[330690794,1719711084905,-3712.27,0.00014575,3]
[330690795,1719711084915,-460.04818104,0.00014575,3]
[330690796,1719711084925,-500.0,0.00014575,3]
[330690797,1719711084934,-500.0,0.00014575,3]
[330690798,1719711084944,-500.0,0.00014575,3]
[330690799,1719711084954,-500.0,0.00014575,3]
[330690800,1719711084963,-2737.34,0.00014575,3]
[330690801,1719711084972,-1116.78,0.00014575,3]
[330690802,1719711084982,-500.0,0.00014575,3]
[330690803,1719711084992,-500.0,0.00014575,3]
[330690804,1719711085001,-500.0,0.00014575,3]
[330690805,1719711085011,-500.0,0.00014575,3]
[330690806,1719711085020,-500.0,0.00014575,3]
[330690807,1719711085029,-2164.74,0.00014575,3]
[330690808,1719711085038,-500.0,0.00014575,3]
[330690809,1719711085048,-500.0,0.00014575,3]
[330690810,1719711085057,-500.0,0.00014575,3]
[330690811,1719711085067,-1569.95,0.00014575,3]
[330690812,1719711085076,-622.77127587,0.00014575,3]
[330690813,1719711085085,-500.0,0.00014575,3]
[330690814,1719711085094,-4687.88,0.00014575,3]
[330690815,1719711085103,-500.0,0.00014575,3]
[330690816,1719711085113,-544.63537157,0.00014575,3]
[330690817,1719711085122,-500.0,0.00014575,3]
[330690818,1719711085131,-684.17,0.00014575,3]
[330690819,1719711085141,-713.16,0.00014575,3]
[330690820,1719711085151,-571.91466467,0.00014575,3]
[330690821,1719711085160,-500.0,0.00014575,3]
[330690822,1719711085170,-500.0,0.00014575,3]
[330690823,1719711085179,-1295.72,0.00014575,3]
[330690824,1719711085188,-500.0,0.00014575,3]
[330690825,1719711085200,-500.0,0.00014575,3]
[330690826,1719711085209,-500.0,0.00014575,3]
[330690827,1719711085220,-1900.6,0.00014575,3]
[330690828,1719711085230,-500.0,0.00014575,3]
[330690829,1719711085239,-500.0,0.00014575,3]
[330690830,1719711085248,-710.78,0.00014575,3]
[330690831,1719711085258,-500.0,0.00014575,3]
[330690832,1719711085267,-500.0,0.00014575,3]
[330690833,1719711085277,-1699.63,0.00014575,3]
[330690834,1719711085286,-500.0,0.00014575,3]
[330690835,1719711085295,-500.0,0.00014575,3]
[330690836,1719711085304,-500.0,0.00014575,3]
[330690837,1719711085313,-601.07,0.00014575,3]
[330690838,1719711085322,-1066.9,0.00014575,3]
[330690839,1719711085332,-500.0,0.00014575,3]
[330690840,1719711085342,-500.0,0.00014575,3]
[330690841,1719711085351,-500.0,0.00014575,3]
[330690842,1719711085360,-832.37,0.00014575,3]
[330690843,1719711085370,-500.0,0.00014575,3]
[330690844,1719711085380,-1071.66,0.00014575,3]
[330690845,1719711085389,-500.0,0.00014575,3]
[330690846,1719711085399,-500.0,0.00014575,3]
[330690847,1719711085408,-716.2,0.00014575,3]
[330690848,1719711085418,-761.79,0.00014575,3]
[330690849,1719711085428,-533.26,0.00014575,3]
[330690850,1719711085438,-519.14,0.00014575,3]
[330690851,1719711085447,-500.0,0.00014575,3]
[330690852,1719711085457,-663.53,0.00014575,3]
[330690853,1719711085466,-500.0,0.00014575,3]
[330690854,1719711085476,-911.02,0.00014575,3]
[330690855,1719711085486,-500.0,0.00014575,3]
[330690856,1719711085495,-500.98,0.00014575,3]
[330690857,1719711085505,-1050.04,0.00014575,3]
[330690858,1719711085514,-755.44,0.00014575,3]
[330690859,1719711085524,-627.64,0.00014575,3]
[330690860,1719711085535,-1768.33,0.00014575,3]
[330690861,1719711085544,-500.0,0.00014575,3]
[330690862,1719711085554,-500.0,0.00014575,3]
[330690863,1719711085563,-500.0,0.00014575,3]
[330690864,1719711085573,-500.0,0.00014575,3]
[330690865,1719711085583,-500.0,0.00014575,3]
[330690866,1719711085594,-644.01,0.00014575,3]
[330690867,1719711085609,-500.0,0.00014575,3]
[330690868,1719711085623,-889.76,0.00014575,3]
[330690869,1719711085637,-859.12,0.00014575,3]
[330690870,1719711085651,-500.0,0.00014575,3]
[330690871,1719711085662,-500.0,0.00014575,3]
[330690872,1719711085676,-500.0,0.00014575,3]
[330690873,1719711085691,-534.75,0.00014575,3]
[330690874,1719711085704,-500.0,0.00014575,3]
[330690875,1719711085716,-500.0,0.00014575,3]
[330690876,1719711085728,-651.9,0.00014575,3]
[330690877,1719711085742,-1138.76,0.00014575,3]
[330690878,1719711085754,-500.0,0.00014575,3]
[330690879,1719711085769,-500.0,0.00014575,3]
[330690880,1719711085783,-578.29,0.00014575,3]
[330690881,1719711085796,-649.15,0.00014575,3]
[330690882,1719711085808,-721.45,0.00014575,3]
[330690883,1719711085820,-617.2,0.00014575,3]
[330690884,1719711085832,-500.0,0.00014575,3]
[330690885,1719711085844,-595.24,0.00014575,3]
[330690886,1719711085858,-500.0,0.00014575,3]
[330690887,1719711085871,-551.62,0.00014575,3]
[330690888,1719711085884,-500.0,0.00014575,3]
[330690889,1719711085896,-548.68,0.00014575,3]
[330690890,1719711085907,-500.0,0.00014575,3]
[330690891,1719711085918,-780.35,0.00014575,3]
[330690892,1719711085930,-500.0,0.00014575,3]
[330690893,1719711085943,-500.0,0.00014575,3]
[330690894,1719711085956,-540.99,0.00014575,3]
[330690895,1719711085969,-517.82,0.00014575,3]
[330690896,1719711085982,-737.39,0.00014575,3]
[330690897,1719711085995,-500.0,0.00014575,3]
[330690898,1719711086008,-500.0,0.00014575,3]
[330690899,1719711086021,-605.18,0.00014575,3]
[330690900,1719711086034,-500.0,0.00014575,3]
[330690901,1719711086044,-600.31,0.00014575,3]
[330690902,1719711086055,-500.0,0.00014575,3]
[330690903,1719711086066,-880.06,0.00014575,3]
[330690904,1719711086076,-500.0,0.00014575,3]
[330690905,1719711086088,-537.38,0.00014575,3]
[330690906,1719711086100,-1133.19,0.00014575,3]
[330690907,1719711086113,-582.47,0.00014575,3]
[330690908,1719711086124,-772.55,0.00014575,3]
[330690909,1719711086134,-500.0,0.00014575,3]
[330690910,1719711086146,-862.26,0.00014575,3]
[330690911,1719711086157,-510.91,0.00014575,3]
[330690912,1719711086171,-2714.67,0.00014575,3]
[330690913,1719711086183,-802.38,0.00014575,3]
[330690914,1719711086194,-500.0,0.00014575,3]
[330690915,1719711086205,-500.0,0.00014575,3]
[330690916,1719711086216,-521.73,0.00014575,3]
[330690917,1719711086229,-500.0,0.00014575,3]
[330690918,1719711086240,-500.0,0.00014575,3]
[330690919,1719711086252,-500.0,0.00014575,3]
[330690920,1719711086264,-2040.84,0.00014575,3]
[330690921,1719711086275,-500.0,0.00014575,3]
[330690922,1719711086287,-532.39,0.00014575,3]
[330690923,1719711086299,-1265.1,0.00014575,3]
[330690924,1719711086311,-500.0,0.00014575,3]
[330690925,1719711086323,-500.0,0.00014575,3]
[330690926,1719711086334,-500.0,0.00014575,3]
[330690927,1719711086346,-500.0,0.00014575,3]
[330690928,1719711086357,-553.74246707,0.00014575,3]
[330690929,1719711086369,-952.19,0.00014575,3]
[330690930,1719711086380,-529.97,0.00014575,3]
[330690931,1719711086391,-588.51,0.00014575,3]
[330690932,1719711086402,-500.0,0.00014575,3]
[330690933,1719711086413,-691.24,0.00014575,3]
[330690934,1719711086427,-660.79,0.00014575,3]
[330690935,1719711086439,-500.0,0.00014575,3]
[330690936,1719711086450,-671.71,0.00014575,3]
[330690937,1719711086461,-500.0,0.00014575,3]
[330690938,1719711086472,-500.0,0.00014575,3]
[330690939,1719711086483,-500.0,0.00014575,3]
[330690940,1719711086495,-500.0,0.00014575,3]
[330690941,1719711086507,-500.0,0.00014575,3]
[330690942,1719711086518,-548.68,0.00014575,3]
[330690943,1719711086530,-1531.98,0.00014575,3]
[330690944,1719711086542,-1034.28,0.00014575,3]
[330690945,1719711086553,-500.0,0.00014575,3]
[330690946,1719711086564,-588.83,0.00014575,3]
[330690947,1719711086575,-500.0,0.00014575,3]
[330690948,1719711086586,-538.51,0.00014575,3]
[330690949,1719711086599,-500.0,0.00014575,3]
[330690950,1719711086612,-511.23,0.00014575,3]
[330690951,1719711086624,-527.93,0.00014575,3]
[330690952,1719711086635,-500.0,0.00014575,3]
[330690953,1719711086647,-500.0,0.00014575,3]
[330690954,1719711086658,-599.85,0.00014575,3]
[330690955,1719711086669,-500.0,0.00014575,3]
[330690956,1719711086681,-564.75,0.00014575,3]
[330690957,1719711086692,-500.0,0.00014575,3]
[330690958,1719711086703,-998.73,0.00014575,3]
[330690959,1719711086714,-879.24,0.00014575,3]
[330690960,1719711086725,-500.0,0.00014575,3]
[330690961,1719711086737,-1046.19,0.00014575,3]
[330690962,1719711086748,-1382.68,0.00014575,3]
[330690963,1719711086760,-500.0,0.00014575,3]
[330690964,1719711086771,-500.0,0.00014575,3]
[330690965,1719711086783,-500.0,0.00014575,3]
[330690966,1719711086794,-500.0,0.00014575,3]
[330690967,1719711086806,-500.0,0.00014575,3]
[330690968,1719711086817,-1014.61,0.00014575,3]
[330690969,1719711086828,-500.0,0.00014575,3]
[330690970,1719711086839,-500.0,0.00014575,3]
[330690971,1719711086851,-500.0,0.00014575,3]
[330690972,1719711086862,-500.0,0.00014575,3]
[330690973,1719711086872,-500.0,0.00014575,3]
[330690974,1719711086884,-1918.33,0.00014575,3]
[330690975,1719711086898,-672.21,0.00014575,3]
[330690976,1719711086908,-1152.62,0.00014575,3]
[330690977,1719711086921,-500.0,0.00014575,3]
[330690978,1719711086931,-500.0,0.00014575,3]
[330690979,1719711086942,-1012.12,0.00014575,3]
[330690980,1719711086954,-805.69,0.00014575,3]
[330690981,1719711086965,-500.0,0.00014575,3]
[330690982,1719711086975,-728.19,0.00014575,3]
[330690983,1719711086987,-500.75,0.00014575,3]
[330690984,1719711086998,-397.76658757,0.00014575,3]
[330690985,1719711087008,-1145.72,0.00014575,3]
[330690986,1719711087019,-500.0,0.00014575,3]
[330690987,1719711087030,-636.14,0.00014575,3]
[330690988,1719711087041,-500.0,0.00014575,3]
[330690989,1719711087052,-959.16,0.00014575,3]
[330690990,1719711087063,-500.0,0.00014575,3]
[330690991,1719711087074,-532.97,0.00014575,3]
[330690992,1719711087086,-500.0,0.00014575,3]
[330690993,1719711087097,-726.22,0.00014575,3]
[330690994,1719711087108,-500.0,0.00014575,3]
[330690995,1719711087119,-796.05,0.00014575,3]
[330690996,1719711087130,-500.0,0.00014575,3]
[330690997,1719711087141,-500.0,0.00014575,3]
[330690998,1719711087154,-500.0,0.00014575,3]
[330690999,1719711087164,-500.0,0.00014575,3]
[330691000,1719711087176,-500.0,0.00014575,3]
[330691001,1719711087187,-500.0,0.00014575,3]
[330691002,1719711087199,-1185.2,0.00014575,3]
[330691003,1719711087212,-500.0,0.00014575,3]
[330691004,1719711087223,-500.0,0.00014575,3]
[330691005,1719711087235,-583.84,0.00014575,3]
[330691006,1719711087248,-296.18,0.00014575,3]
[330691007,1719711087259,-500.0,0.00014575,3]
[330691008,1719711087271,-2306.38,0.00014575,3]
[330691009,1719711087281,-712.33,0.00014575,3]
[330691010,1719711087293,-500.0,0.00014575,3]
[330691011,1719711087304,-500.0,0.00014575,3]
[330691012,1719711087315,-500.0,0.00014575,3]
[330691013,1719711087326,-567.32,0.00014575,3]
[330691014,1719711087337,-1188.2,0.00014575,3]
[330691015,1719711087349,-500.0,0.00014575,3]
[330691016,1719711087361,-500.0,0.00014575,3]
[330691017,1719711087375,-1071.25,0.00014575,3]
[330691018,1719711087386,-708.58,0.00014575,3]
[330691020,1719711087402,-549.76,0.00014575,3]
[330691021,1719711087414,-791.93,0.00014575,3]
[330691022,1719711087429,-500.0,0.00014575,3]
[330691023,1719711087440,-759.26,0.00014575,3]
[330691024,1719711087451,-538.9,0.00014575,3]
[330691025,1719711087462,-500.0,0.00014575,3]
[330691026,1719711087473,-500.0,0.00014575,3]
[330691027,1719711087484,-500.0,0.00014575,3]
[330691028,1719711087495,-500.0,0.00014575,3]
[330691029,1719711087507,-500.0,0.00014575,3]
[330691030,1719711087517,-608.49,0.00014575,3]
[330691031,1719711087532,-660.44,0.00014575,3]
[330691032,1719711087543,-500.0,0.00014575,3]
[330691033,1719711087554,-2629.63,0.00014575,3]
[330691034,1719711087565,-500.0,0.00014575,3]
[330691035,1719711087575,-1298.08,0.00014575,3]
[330691036,1719711087586,-500.0,0.00014575,3]
[330691037,1719711087599,-721.44,0.00014575,3]
[330691038,1719711087614,-551.41,0.00014575,3]
[330691039,1719711087625,-510.54004538,0.00014575,3]
[330691040,1719711087635,-945.69,0.00014575,3]
[330691041,1719711087648,-500.0,0.00014575,3]
[330691042,1719711087659,-525.15,0.00014575,3]
[330691043,1719711087671,-1708.5,0.00014575,3]
[330691044,1719711087682,-781.98,0.00014575,3]
[330691045,1719711087693,-1393.7,0.00014575,3]
[330691046,1719711087704,-686.06,0.00014575,3]
[330691047,1719711087715,-500.0,0.00014575,3]
[330691048,1719711087727,-500.0,0.00014575,3]
[330691049,1719711087739,-500.0,0.00014575,3]
[330691050,1719711087750,-1608.03,0.00014575,3]
[330691051,1719711087761,-574.91,0.00014575,3]
[330691052,1719711087772,-500.0,0.00014575,3]
[330691053,1719711087784,-500.0,0.00014575,3]
[330691054,1719711087795,-679.33,0.00014575,3]
[330691055,1719711087807,-500.0,0.00014575,3]
[330691056,1719711087819,-500.0,0.00014575,3]
[330691057,1719711087830,-500.0,0.00014575,3]
[330691058,1719711087841,-500.0,0.00014575,3]
[330691059,1719711087853,-500.0,0.00014575,3]
[330691060,1719711087864,-500.0,0.00014575,3]
[330691061,1719711087875,-4351.69,0.00014575,3]
[330691062,1719711087886,-899.57,0.00014575,3]
[330691063,1719711087898,-500.0,0.00014575,3]
[330691064,1719711087910,-590.76,0.00014575,3]
[330691065,1719711087921,-500.0,0.00014575,3]
[330691066,1719711087933,-581.58,0.00014575,3]
[330691067,1719711087944,-500.0,0.00014575,3]
[330691068,1719711087956,-719.02,0.00014575,3]
[330691069,1719711087967,-209.69145157,0.00014575,3]
[330691070,1719711087978,-680.73,0.00014575,3]
[330691071,1719711087989,-1466.68,0.00014575,3]
[330691072,1719711088000,-500.0,0.00014575,3]
[330691073,1719711088012,-1052.34,0.00014575,3]
[330691074,1719711088024,-8291.65,0.00014575,3]
[330691075,1719711088035,-500.0,0.00014575,3]
[330691076,1719711088046,-500.0,0.00014575,3]
[330691077,1719711088057,-500.0,0.00014575,3]
[330691078,1719711088068,-500.0,0.00014575,3]
[330691079,1719711088079,-500.0,0.00014575,3]
[330691080,1719711088094,-857.65,0.00014575,3]
[330691081,1719711088104,-500.0,0.00014575,3]
[330691082,1719711088117,-733.86,0.00014575,3]
[330691083,1719711088129,-2739.13,0.00014575,3]
[330691084,1719711088142,-500.0,0.00014575,3]
[330691085,1719711088159,-500.0,0.00014575,3]
[330691086,1719711088170,-1644.16,0.00014575,3]
[330691087,1719711088181,-1160.63,0.00014575,3]
[330691088,1719711088192,-709.63,0.00014575,3]
[330691089,1719711088205,-500.0,0.00014575,3]
[330691090,1719711088216,-688.73,0.00014575,3]
[330691091,1719711088227,-500.0,0.00014575,3]
[330691092,1719711088240,-500.0,0.00014575,3]
[330691093,1719711088253,-515.33,0.00014575,3]
[330691094,1719711088265,-1136.46,0.00014575,3]
[330691095,1719711088276,-952.21,0.00014575,3]
[330691096,1719711088288,-651.27,0.00014575,3]
[330691097,1719711088299,-1657.35,0.00014575,3]
[330691098,1719711088310,-1024.41,0.00014575,3]
[330691099,1719711088320,-500.0,0.00014575,3]
[330691100,1719711088331,-440.45864379,0.00014575,3]
[330691101,1719711088343,-666.12,0.00014575,3]
[330691102,1719711088353,-569.76,0.00014575,3]
[330691103,1719711088365,-1272.44,0.00014575,3]
[330691104,1719711088377,-500.0,0.00014575,3]
[330691105,1719711088389,-990.57,0.00014575,3]
[330691106,1719711088402,-500.0,0.00014575,3]
[330691107,1719711088413,-973.19,0.00014575,3]
[330691108,1719711088427,-2333.23,0.00014575,3]
[330691109,1719711088437,-500.0,0.00014575,3]
[330691110,1719711088452,-737.96,0.00014575,3]
[330691111,1719711088464,-2346.07,0.00014575,3]
[330691112,1719711088476,-681.0,0.00014575,3]
[330691113,1719711088487,-500.0,0.00014575,3]
[330691114,1719711088498,-500.0,0.00014575,3]
[330691115,1719711088510,-500.0,0.00014575,3]
[330691116,1719711088521,-2093.74,0.00014575,3]
[330691117,1719711088532,-500.0,0.00014575,3]
[330691118,1719711088543,-741.16,0.00014575,3]
[330691119,1719711088554,-500.0,0.00014575,3]
[330691120,1719711088565,-517.54,0.00014575,3]
[330691121,1719711088576,-1584.98,0.00014575,3]
[330691122,1719711088587,-17519.3,0.00014575,3]
[330691123,1719711088598,-500.0,0.00014575,3]
[330691124,1719711088611,-2255.93,0.00014575,3]
[330691125,1719711088622,-500.0,0.00014575,3]
[330691126,1719711088632,-733.6,0.00014575,3]
[330691127,1719711088644,-730.7,0.00014575,3]
[330691128,1719711088656,-1366.43,0.00014575,3]
[330691129,1719711088666,-2373.06,0.00014575,3]
[330691130,1719711088685,-500.0,0.00014575,3]
[330691131,1719711088696,-500.0,0.00014575,3]
[330691132,1719711088708,-1233.97,0.00014575,3]
[330691133,1719711088719,-973.08,0.00014575,3]
[330691134,1719711088730,-500.0,0.00014575,3]
[330691135,1719711088741,-500.0,0.00014575,3]
[330691136,1719711088753,-565.49,0.00014575,3]
[330691137,1719711088763,-1453.68,0.00014575,3]
[330691138,1719711088775,-500.0,0.00014575,3]
[330691139,1719711088787,-500.0,0.00014575,3]
[330691140,1719711088799,-500.0,0.00014575,3]
[330691141,1719711088810,-2749.71,0.00014575,3]
[330691142,1719711088822,-500.0,0.00014575,3]
[330691143,1719711088833,-1470.04,0.00014575,3]
[330691144,1719711088845,-500.0,0.00014575,3]
[330691145,1719711088857,-1000.06,0.00014575,3]
[330691146,1719711088868,-789.6,0.00014575,3]
[330691147,1719711088880,-3074.88,0.00014575,3]
[330691148,1719711088891,-587.36,0.00014575,3]
[330691149,1719711088903,-1717.46,0.00014575,3]
[330691150,1719711088915,-553.57,0.00014575,3]
[330691151,1719711088928,-538.78,0.00014575,3]
[330691152,1719711088940,-734.77,0.00014575,3]
[330691153,1719711088952,-872.59,0.00014575,3]
[330691154,1719711088964,-505.1,0.00014575,3]
[330691155,1719711088975,-4030.58,0.00014575,3]
[330691156,1719711088987,-500.0,0.00014575,3]
[330691157,1719711088999,-1619.26,0.00014575,3]
[330691158,1719711089010,-1040.75,0.00014575,3]
[330691159,1719711089022,-500.0,0.00014575,3]
[330691160,1719711089033,-500.0,0.00014575,3]
[330691161,1719711089045,-1019.73,0.00014575,3]
[330691162,1719711089057,-500.0,0.00014575,3]
[330691163,1719711089070,-917.98,0.00014575,3]
[330691164,1719711089083,-544.73,0.00014575,3]
[330691165,1719711089096,-500.0,0.00014575,3]
[330691166,1719711089108,-500.0,0.00014575,3]
[330691167,1719711089121,-2026.5,0.00014575,3]
[330691168,1719711089133,-1434.62,0.00014575,3]
[330691169,1719711089145,-914.82,0.00014575,3]
[330691170,1719711089156,-806.6,0.00014575,3]
[330691171,1719711089167,-2283.96,0.00014575,3]
[330691172,1719711089180,-853.8,0.00014575,3]
[330691173,1719711089192,-500.0,0.00014575,3]
[330691174,1719711089203,-990.19,0.00014575,3]
[330691175,1719711089214,-527.87,0.00014575,3]
[330691176,1719711089225,-500.0,0.00014575,3]
[330691177,1719711089237,-555.08,0.00014575,3]
[330691178,1719711089248,-500.0,0.00014575,3]
[330691179,1719711089259,-2932.06,0.00014575,3]
[330691180,1719711089271,-1092.71,0.00014575,3]
[330691181,1719711089282,-500.0,0.00014575,3]
[330691182,1719711089294,-1430.53,0.00014575,3]
[330691183,1719711089305,-866.85,0.00014575,3]
[330691184,1719711089316,-500.0,0.00014575,3]
[330691185,1719711089327,-500.0,0.00014575,3]
[330691186,1719711089338,-668.37,0.00014575,3]
[330691187,1719711089349,-726.78,0.00014575,3]
[330691188,1719711089360,-804.46,0.00014575,3]
[330691189,1719711089371,-623.27,0.00014575,3]
[330691190,1719711089382,-962.38,0.00014575,3]
[330691191,1719711089393,-500.0,0.00014575,3]
[330691192,1719711089404,-1151.96,0.00014575,3]
[330691193,1719711089415,-1231.81,0.00014575,3]
[330691194,1719711089437,-572.24,0.00014575,3]
[330691195,1719711089452,-500.0,0.00014575,3]
[330691196,1719711089466,-500.0,0.00014575,3]
[330691197,1719711089867,-500.0,0.00014575,3]
[330691198,1719711089991,-789.18,0.00014575,3]
[330691199,1719711090005,-500.0,0.00014575,3]
[330691200,1719711090015,-500.0,0.00014575,3]
[330691201,1719711090024,-2872.85,0.00014575,3]
[330691202,1719711090034,-1003.38,0.00014575,3]
[330691203,1719711090044,-500.0,0.0001463,2]
[330691204,1719711090055,-500.0,0.0001463,2]
[330691205,1719711090064,-150.0,0.00014645,2]
[330691206,1719711090074,-173.93035237,0.00014645,2]
[330691207,1719711090083,-201.91462433,0.00014645,2]
[330691208,1719711090093,-150.0,0.00014645,2]
[330691209,1719711090102,-2940.4684663,0.00014669,2]
[330691210,1719711090113,-9153.93675364,0.00014669,2]
[330691211,1719711090123,-61320.8395666,0.00014674,2]
[330691212,1719711090133,-2843.6515348,0.00014674,2]
[330691213,1719711090142,-1246.57,0.00014684,3]
[330691214,1719711090152,-2620.27,0.00014684,3]
[330691215,1719711090161,-771.15,0.00014684,3]
[330691216,1719711090171,-2420.64,0.00014684,3]
[330691217,1719711090180,-1036.09,0.00014684,3]
[330691218,1719711090190,-2486.42,0.00014684,3]
[330691219,1719711090199,-1825.95,0.00014684,3]
[330691220,1719711090208,-500.0,0.00014684,3]
[330691221,1719711090218,-3712.27,0.00014684,3]
[330691222,1719711090227,-500.0,0.00014684,3]
[330691223,1719711090236,-500.0,0.00014684,3]
[330691224,1719711090246,-500.0,0.00014684,3]
[330691225,1719711090256,-500.0,0.00014684,3]
[330691226,1719711090265,-2737.34,0.00014684,3]
[330691227,1719711090274,-1116.78,0.00014684,3]
[330691228,1719711090283,-500.0,0.00014684,3]
[330691229,1719711090292,-500.0,0.00014684,3]
[330691230,1719711090302,-500.0,0.00014684,3]
[330691231,1719711090311,-500.0,0.00014684,3]
[330691232,1719711090320,-500.0,0.00014684,3]
[330691233,1719711090330,-2164.74,0.00014684,3]
[330691234,1719711090339,-500.0,0.00014684,3]
[330691235,1719711090349,-500.0,0.00014684,3]
[330691236,1719711090358,-500.0,0.00014684,3]
[330691237,1719711090367,-1569.95,0.00014684,3]
[330691238,1719711090377,-500.0,0.00014684,3]
[330691239,1719711090386,-4687.88,0.00014684,3]
[330691240,1719711090396,-500.0,0.00014684,3]